Cogmind - Beta 16 @@@ ROGUE MODE // 2025.11.06 @ 15:07:33 Player: Zane Result: Destroyed by 8B-I0G(R) with Subdweller Machine Gun Performance ------------- Evolutions (0) 0 Regions Visited (2) 400 Robots Destroyed (15) 75 Value Destroyed (315) 315 Prototype IDs (0) 0 Alien Tech Used (0) 0 Bonus (0) 0 TOTAL SCORE: 790 Bonus ------- None Cogmind --------- Core Integrity 0/250 Matter 280/300 Energy 200/200 System Corruption 0% Temperature Cool (0) Movement Rolling (115) Ox1 Location -10/Subcaves Parts ------- > --- POWER (1) -------- Subdweller Power Source > --- PROPULSION (2) --- Light Treads Compact Wheel > --- UTILITY (2) ------ Small Storage Unit Structural Scanner > --- WEAPON (2) ------- Subdweller Beam Cannon Light Assault Rifle > --- INVENTORY (8) ---- Aluminum Leg Targeting Computer Scrap Shield Fragment (45) Peak State ------------ > --- POWER ------------ Subdweller Power Source > --- PROPULSION ------- Light Treads Compact Wheel > --- UTILITY ---------- Small Storage Unit Structural Scanner > --- WEAPON ----------- Subdweller Beam Cannon Light Assault Rifle > --- INVENTORY -------- Aluminum Leg Targeting Computer Scrap Shield Fragment [Rating: 9] Favorites ----------- Power Light Ion Engine Engine Light Ion Engine Propulsion Aluminum Leg Treads Light Treads Leg Aluminum Leg Wheel Compact Wheel Utility Small Storage Unit Device Seismic Detector Storage Small Storage Unit Protection Light Armor Plating Weapon Light Assault Rifle Energy Gun Small Laser Energy Cannon Subdweller Beam Cannon Ballistic Gun Light Assault Rifle Build | -11 -10 -10 ------- Run | Yrd Mat Sub Slots Evolved . | . . . Power . | . . . Propulsion . | . . . Utility . | . . . Weapon . | . . . Parts Attached 20 | 7 7 6 Power 3 | 1 1 1 Engine 3 | 1 1 1 Core . | . . . Reactor . | . . . Propulsion 7 | 2 2 3 Treads 2 | . . 2 Leg 4 | 2 2 . Wheel 1 | . . 1 Hover . | . . . Flight . | . . . Utility 5 | 2 2 1 Device 2 | 1 . 1 Storage 1 | 1 . . Processor . | . . . Hackware . | . . . Protection 2 | . 2 . Artifact . | . . . Weapon 5 | 2 2 1 Energy Gun 1 | . 1 . Energy Cannon 1 | . . 1 Ballistic Gun 3 | 2 1 . Ballistic Cannon . | . . . Launcher . | . . . Special Weapon . | . . . Impact Weapon . | . . . Slashing Weapon . | . . . Piercing Weapon . | . . . Special Melee Weapon . | . . . Unidentified Prototypes . | . . . Parts Lost 10 | . 2 8 Power 2 | . 1 1 Propulsion 3 | . . 3 Utility 3 | . 1 2 Weapon 2 | . . 2 Highest Loss Streak 8 | . 2 8 To Critical Strikes . | . . . Average Backups 5 | 3 7 4 Power . | . . . Propulsion 2 | 1 3 2 Utility 1 | . 2 1 Weapon . | . 1 . Tool/Special . | . . . Unused Backups 1 | . . 1 Power . | . . . Propulsion . | . . . Utility 1 | . . 1 Weapon . | . . . Tool/Special . | . . . Average Slot Usage (%) 93 | . 99 84 Engine 13 | . 13 12 Treads 3 | . . 9 Leg 20 | . 28 8 Wheel 3 | . . 8 Device 7 | . 6 9 Storage 14 | . 14 14 Protection 5 | . 7 . Energy Gun 2 | . . 4 Ballistic Gun 22 | . 27 15 Peak Build Rating 9 | 7 7 9 Average Rating 6 | 5 6 6 On Entrance 4 | . 7 7 Avg Prop Armor Cover (%) 17 | . . 17 Naked Turns . | . . . Heaviest Build 20 | 11 13 20 Greatest Support 20 | 20 20 20 Greatest Overweight (x) 1 | . . 1 Average Overweight (x) . | . . . Largest Inventory Capacity 8 | 8 8 8 Average Capacity 7 | 7 8 8 Most Carried 8 | 6 8 8 Average Carried 6 | 3 7 4 Final Capacity 8 | 8 8 8 Final Carried 8 | 5 8 3 Class Distribution -------------------- 89% | Mutant 10% | Scavenger-Mutant Dominant Class ---------------- Mutant | -10/Materials Mutant | -10/Subcaves Resources | -11 -10 -10 ----------- Run | Yrd Mat Sub Matter Collected 498 | 219 221 58 Remotely . | . . . Salvage Created 504 | 40 350 114 Parts 28 | 4 21 3 Haulers Intercepted . | . . . Recyclers Shooed 2 | . 2 . Parts Field Recycled . | . . . Retrieved Matter . | . . . Parts Self-Destructed . | . . . Prevented . | . . . Parts Restored . | . . . Kills | -11 -10 -10 ------- Run | Yrd Mat Sub Combat Hostiles Destroyed 11 | . 9 2 Guns 11 | . 9 2 Classes Destroyed 6 | 1 4 1 Tunneler 2 | 2 . . Recycler 1 | . 1 . Watcher 1 | . 1 . Swarmer 5 | . 5 . Grunt 4 | . 4 . Subdweller 2 | . . 2 Best Kill Streak 4 | 2 4 1 Combat Bots Only 2 | . 2 1 Max Kills in Single Turn 1 | 1 1 1 Gunslinging . | . . . Exploded . | . . . Melee . | . . . Uniques/NPCs Destroyed . | . . . Combat | -11 -10 -10 -------- Run | Yrd Mat Sub Hostile Shots Fired 155 | . 112 43 Missed 51 | . 44 7 Hits 104 | . 68 36 Projectile 104 | . 68 36 Critical Strikes 2 | . 1 1 Damage Taken 1432 | . 594 838 Core 266 | . 82 184 Absorbed by Shields . | . . . Core Remaining (%) 100 | 100 . . Volleys Fired 79 | 6 54 19 Largest 2 | 2 2 2 Hottest 60 | 40 40 60 Shots Fired 156 | 12 108 36 Gun 156 | 12 108 36 Cannon . | . . . Launcher . | . . . Special . | . . . Kinetic 149 | 12 108 29 Thermal 7 | . . 7 Explosive . | . . . Electromagnetic . | . . . Robot Hit Streak 19 | 4 11 19 Robot Miss Streak 4 | 2 4 1 Penetration Max . | . . . Secondary Targets 3 | . 3 . Max Gunslinging Chain 1 | . 1 . Shots Hit Robots 107 | 8 64 35 Core Hits 33 | 4 22 7 Critical Kills . | . . . Critical Parts Destroyed 1 | . 1 . Critical Strikes 2 | . 1 1 Destroy 2 | . 1 1 Melee Attacks . | . . . Impact . | . . . Slashing . | . . . Piercing . | . . . Sneak Attacks . | . . . Combat Hostiles . | . . . Follow-up Attacks . | . . . Damage Inflicted 894 | 82 511 301 Guns 884 | 76 507 301 Cannons . | . . . Explosions . | . . . Melee . | . . . Ramming 10 | 6 4 . Kinetic 809 | 76 507 226 Thermal 75 | . . 75 Explosive . | . . . Electromagnetic . | . . . Impact . | . . . Slashing . | . . . Piercing . | . . . Highest Corruption . | . . . Average Corruption . | . . . Corruption Purged . | . . . Corruption Blocked . | . . . Overload Shots . | . . . Overflow Damage . | . . . Projectiles . | . . . Explosions . | . . . Melee . | . . . Knockbacks . | . . . Impact . | . . . Kinetic . | . . . Secondary . | . . . Self-Inflicted Damage . | . . . Shots . | . . . Rammed . | . . . Targets Rammed 4 | 2 2 . Kicked 4 | 2 2 . Crushed . | . . . Highest Temperature 259 | . 25 259 Average Temperature 33 | . 8 157 Received Heat Transfer 637 | . 117 520 Siege Activations . | . . . Martial Activations . | . . . Shielding Activations . | . . . Robots Disrupted . | . . . Combat Hostiles . | . . . Robots Corrupted . | . . . Combat Hostiles . | . . . Parts Fried . | . . . Impact Corruptions . | . . . Robots Melted . | . . . Combat Hostiles . | . . . Parts Melted 1 | . . 1 Heat Transferred 175 | . . 175 Parts Sabotaged . | . . . Parts Stolen . | . . . Parts Stripped . | . . . Power Chain Reactions . | . . . Alert | -11 -10 -10 ------- Run | Yrd Mat Sub Maximum Alert Level . | . . . Low Security (%) 100 | 100 100 . Level 1 . | . . . Level 2 . | . . . Level 3 . | . . . Level 4 . | . . . Level 5 . | . . . High Security . | . . . Max Security . | . . . Peak Influence 92 | 5 92 . Initial . | . . . Average 33 | . 38 . Influence Increases 277 | 10 267 . Destroy 0b10 Robot/C 180 | . 180 . Destroy 0b10 Robot/NC 20 | 10 10 . Destroy Leader 32 | . 32 . Lose Combat Pursuer 45 | . 45 . Influence Decreases 277 | 10 222 45 Entered New Map 22 | . . 22 Time Decay 235 | 10 202 23 Lost Part 20 | . 20 . Squads Dispatched 2 | . 2 . Investigation 1 | . 1 . Extermination . | . . . Reinforcement 1 | . 1 . Assault . | . . . Garrison . | . . . Intercept . | . . . Searches Triggered . | . . . Construction Impeded . | . . . Haulers Reinforced . | . . . Active Scanning Responses . | . . . Cargo Convoy Interrupts . | . . . Stealth | -11 -10 -10 --------- Run | Yrd Mat Sub Distress Signals 4 | . 4 . Communications Jammed . | . . . Distress Signals . | . . . Times Spotted 24 | . 20 4 Peak Tracking Total 7 | . 7 2 Tactical Retreats 2 | . 2 . Traps | -11 -10 -10 ------- Run | Yrd Mat Sub Traps Triggered . | . . . Indirectly . | . . . Trap Hack Attempts . | . . . Triggered . | . . . Disarmed . | . . . Reprogrammed . | . . . Reused . | . . . Traps Extracted . | . . . Installed . | . . . Triggered . | . . . Machines | -11 -10 -10 ---------- Run | Yrd Mat Sub Machines Disabled . | . . . Max in Single Turn . | . . . Machines Repaired . | . . . Machines Dismantled . | . . . Machines Sabotaged . | . . . Overloaded Fab Kills . | . . . Hacking | -11 -10 -10 --------- Run | Yrd Mat Sub Machines Accessed 1 | . 1 . Terminals 1 | . 1 . Fabricators . | . . . Repair Stations . | . . . Recycling Units . | . . . Scanalyzers . | . . . Garrison Access . | . . . Total Hacks 2 | . 2 . Successful . | . . . Failed 2 | . 2 . Catastrophic . | . . . Database Lockouts . | . . . Manual . | . . . Terminals 2 | . 2 . Fabricators . | . . . Repair Stations . | . . . Recycling Units . | . . . Scanalyzers . | . . . Garrison Access . | . . . Terminal Hacks . | . . . Fabricator Hacks . | . . . Repair Station Hacks . | . . . Recycling Unit Hacks . | . . . Scanalyzer . | . . . Garrison Access Hacks . | . . . Unauthorized Hacks . | . . . Terminals . | . . . Fabricators . | . . . Repair Stations . | . . . Recycling Units . | . . . Scanalyzers . | . . . Garrison Access . | . . . Data Cores Recovered . | . . . Used . | . . . Hacking Detections 1 | . 1 . Full Trace Events 1 | . 1 . Feedback Events . | . . . Feedback Blocked . | . . . Robot Schematics Acquired . | . . . Robots Built . | . . . Authchips . | . . . Time . | . . . Total Robot Build Rating . | . . . Part Schematics Acquired . | . . . Parts Built . | . . . Authchips . | . . . Time . | . . . Total Part Build Rating . | . . . Part Studies Acquired . | . . . Parts Repaired . | . . . Time . | . . . Parts Recycled . | . . . Recycled Matter . | . . . Retrieved Matter . | . . . Retrieved Components . | . . . Parts Scanalyzed . | . . . Part Schematics Acquired . | . . . Parts Damaged . | . . . Bothacking | -11 -10 -10 ------------ Run | Yrd Mat Sub Used RIF Installer . | . . . Robots Hacked . | . . . Non-combat . | . . . Combat . | . . . Robot Hacks Applied . | . . . Relay Couplers Released . | . . . Fabnet Peak Effective % . | . . . Robots Rewired . | . . . Allies Hacked . | . . . Hacks Repelled . | . . . Allies | -11 -10 -10 -------- Run | Yrd Mat Sub Total Allies . | . . . Largest Group . | . . . Highest-Rated Group . | . . . Highest-Rated Ally . | . . . Total Orders . | . . . Ally Attacks . | . . . Total Damage . | . . . Kills . | . . . Allies Corrupted . | . . . Allies Melted . | . . . Intel | -11 -10 -10 ------- Run | Yrd Mat Sub Active Infowar (turns) 464 | 6 245 213 Structural 130 | . . 130 Seismic 334 | 6 245 83 Robot Analysis Total . | . . . Derelict Logs Recovered . | . . . Drone Launches . | . . . Drone Recoveries . | . . . Exploration | -11 -10 -10 ------------- Run | Yrd Mat Sub Turns Passed 996 | 91 573 332 Spaces Moved 616 | 50 321 245 Core 3 | 3 . . Treads . | . . . Legs 420 | 47 321 52 Wheels 193 | . . 193 Hover . | . . . Flight . | . . . Fastest Speed 50 | 50 120 100 Average Speed 114 | 115 120 105 Slowest Speed 120 | 120 120 120 Overloaded Moves . | . . . Propulsion Burnouts . | . . . Robots Hopped . | . . . Potential Cave-ins . | . . . Cave-ins Triggered . | . . . Exploration Rate (%) 22 | 5 38 23 Regions Visited 2 Branch Regions 1 Pre-discovered Areas . | . . . Known Exits Taken . | . . . Unknown Exits Taken 2 | 1 1 . Scrap Searched . | . . . Spaces Dug . | . . . Terrain Destroyed . | . . . Melee . | . . . Projectile . | . . . AOE . | . . . Terrain Rammed . | . . . Walls Destroyed . | . . . Machines Disabled . | . . . Actions | -11 -10 -10 --------- Run | Yrd Mat Sub Total 776 | 70 420 286 Wait 44 | . 31 13 Move 614 | 49 320 245 Hop . | . . . Pick Up 10 | 6 3 1 Fast Attach 9 | 6 1 2 Attach 8 | 1 1 6 Detach . | . . . Swap 6 | . 6 . Drop 2 | . 2 . Fire 79 | 6 54 19 Melee . | . . . Ram . | . . . Kick 4 | 2 2 . Crush . | . . . Escape Stasis . | . . . Rewire . | . . . Trap . | . . . Miscellaneous . | . . . Route ------- -11/Scrapyard -10/Materials (discovered 2 exits: [*Min] / [*Sub]) -10/Subcaves History --------- Turn | Location | Event 2 | -11/Scrapyard | Met Revision 17 17 | -11/Scrapyard | Discovered new exit (range 13) 92 | -11/Scrapyard | Entered Materials 198 | -10/Materials | Discovered new exit (range 15) 324 | -10/Materials | Build established: Mutant 486 | -10/Materials | Discovered new exit (range 6) 665 | -10/Materials | Entered Subcaves 666 | -10/Subcaves | Approached by a straggling Scientist 751 | -10/Subcaves | Core integrity fell below 50% 771 | -10/Subcaves | Core integrity fell below 20% 822 | -10/Subcaves | Lost 8 parts (1p3n2u2w) 959 | -10/Subcaves | Shifting Twisted Machinery released Sub. Beam Cannon 960 | -10/Subcaves | Shifting Twisted Machinery released Sub. Machine Gun 997 | -10/Subcaves | Destroyed by 8B-I0G(R) with Subdweller Machine Gun Last Messages --------------- 00793_ 88-241(R) destroyed. 00796_ Acquired Sub. Power Source. 00798_ Acquired 54 matter. 00799_ Acquired 4 matter. 00801_ Acquired Scrap Shield Fragment. 00814_ Subatomizers dissect the Disposable Heat Sink. SZ-IKC(c): "I think it's somewhere west of here" 00826_ Subatomizers dissect the Disposable Heat Sink. SZ-IKC(c): "I think it's somewhere west of here" 00947_ Subatomizers dissect the Disposable Heat Sink. Sub. Beam Cannon falls loose from the Twisted Machinery. Sub. Machine Gun falls loose from the Twisted Machinery. 00966_ Acquired Sub. Beam Cannon. 00993_ EO-SQZ(u) tweaks Twisted Machinery. Map ----- +----------------------------------------------------+ | ?????????????????????????????????????????????????? | | ?????????????????????????????????????????????????? | | ?????????????????????????????????????????????????? | | ?????????????????????????????????????????????????? | | ?????????????????????????????????????????????????? | | ?????????????????????????????????????????????????? | | ??????????????????????????????????????######?????? | | ?????????????#####????????????????????######?????? | | ????????????#######??????????????????? $# #?????? | | ????????????## ##????###????????????? #?????? | | ????###????? #??? ##??????????###" ###?????? | | ????###?????? #### ??????????#### $####???? | | ????## ????? #### ????######### # #####???? | | ????## ??? ## ###???######### " " ###### | | ???### ?#### #### ?## ## # # ###### | | ???### ### ### ## """" | | ???## ## ## ## ## ##??? | | ???# #### ##### # ####??? | | ??????? #### ###### ####?? | | ????????? ##???## ##### ###?? | | ??????????? ###?##### ##?### ##? | | ????????????? #####?###### ##?#### ## | | ??? ???????### #####??##### R ####### [## | | ?## ?? ### ############ ###### """ | | ?## ## ########## ### ### " | | ?## # ###@ ## ## # | | ### ### ## | | ## """"" ### # ### | | " # "# " ! ### # #### | | " "####### " !%* ###### ###? | | ### "######## " # ###### ###? | | #### #######""" ## # #### ##? | | #### ??#####u ## ## #### #######? | | ### ???##"" ## ### ### ########? | | # ## ????##"" # ### ### ##?????? | | ## ## ?????##"" ## #### ## ##?????? | | ## #### ### ####"" ### ### ## # #######?? | | ## #############"" ###### # ## ###?? | | # ##### #### ## ##### ##?? | | # ############ ###? | | ############# ## ### | | ################ #####????????## ## ## | | ######################????????### ## ## ## | | ??????????????######???####???## ## ######## | | ??????????????????????## ##??## ############# | | ??????????????????????# ##?## ######?????### | | ??????????????????????# #### ##?##???????## | | ?????????????????????## ### ## #??????????? | | ?????????????????????# #??????????? | | ????????????????????## #??????????? | +----------------------------------------------------+ Best States ------------- Heat Dissipation 25 Energy Generation 15 Energy Capacity 200 Matter Stores 300 Matter Capacity 300 Sight Range 16 Terrain Scan Density 10 Armor Coverage 150 Evasion (%) 55 Recoil Reduction 1 Item Schematics ----------------- None Robot Schematics ------------------ None Fabricated ------------ Nothing Repaired ---------- Nothing Studied --------- None Alien Tech Used ----------------- None Achievements -------------- You Again Challenges ------------ None Game ------ Seed NavigationTeslaDetonator Manual? 0 Play Time 00:10:53 Cumulative 37.7 hours Start 2025.11.06 @ 14:55:45 End 2025.11.06 @ 15:07:33 Sessions 1 Manual Loads 0 Difficulty Rogue Special Mode None Game No. 51 Rogue 51 Adventurer 0 Explorer 0 Win Type - Total 0 Types 0/0/0/0/0/0/0/0/0/0 Lore% 40 Gallery% 33 Achievement% 18 Wizard Run 0 Options --------- Layout 1 ASCII 0 Keyboard 0 Movement Numpad Keybinds 0 Fullscreen 1 Font 24/Smallcaps Map View 50x35 Zoom Use 0% Tactical HUD 1 Map Filters NONE Filters NONE Steam 1 RUN: 977e1019-f172-4cf4-bbf5-04c9d60f8c14